Cogmind - Beta 10.2 @@@ ROGUE MODE // 2021.10.10 @ 23:29:40 Player: Howard Result: Destroyed by Y-72 Warden with Quantum Rifle Performance ------------- Evolutions (9) 4500 Regions Visited (30) 6000 Robots Destroyed (327) 1635 Value Destroyed (21504) 21504 Prototype IDs (13) 260 Alien Tech Used (0) 0 Bonus (24378) 24378 TOTAL SCORE: 58277 Bonus ------- Triggered High Security 500 High Alert Combat Kills 4581 Follower Combat Kills 10792 Entered Garrisons 2600 Used RIF Installer 6500 Friendly Fire -595 Cogmind --------- Core Integrity 0/1600 Matter 4/300 Energy 98/100 System Corruption 12% Temperature Cool (9) Movement Core (50) Location -1/Access Parts ------- > --- POWER (4) -------- (None) > --- PROPULSION (3) --- (None) > --- UTILITY (16) ----- Relay Coupler [ARC] (5) Relay Coupler [Specialist] (49) > --- WEAPON (2) ------- (None) > --- INVENTORY (4) ---- Relay Coupler [NC] (41) Relay Coupler [NC] (34) Remote Datajack Chainsword Peak State ------------ > --- POWER ------------ Light Antimatter Reactor Light Particle Reactor Quantum Reactor Light Quantum Reactor > --- PROPULSION ------- Armored Wheel Armored Wheel Centrium Wheel > --- UTILITY ---------- Large Storage Unit High-capacity Storage Unit High-capacity Storage Unit High-capacity Storage Unit Advanced Signal Interpreter Advanced Thermal Defense Suite Improved Remote Force Field Relay Coupler [ARC] Relay Coupler [Swarmer] Relay Coupler [Grunt] Relay Coupler [Sentry] Relay Coupler [Demolisher] Relay Coupler [Specialist] Relay Coupler [Hunter] Relay Coupler [Hunter] Relay Coupler [Behemoth] > --- WEAPON ----------- Gamma Rifle Improved Remote Datajack > --- INVENTORY -------- Reinforced Fission Core Light Antimatter Reactor Light Antimatter Reactor Particle Reactor Armored Wheel Armored Wheel Armored Wheel Armored Wheel Advanced Sensor Array Long-range Sensor Array Heavy Reflective Plating Improved Remote Force Field Improved Remote Force Field Relay Coupler [NC] Relay Coupler [Swarmer] Relay Coupler [Swarmer] Relay Coupler [Swarmer] Relay Coupler [Grunt] Relay Coupler [Grunt] Relay Coupler [Grunt] Relay Coupler [Brawler] Relay Coupler [Brawler] Relay Coupler [Sentry] Relay Coupler [Specialist] Long-range Proton Cannon Compact HERF Cannon Compact HERF Cannon Precision Rocket Launcher Precision Rocket Launcher Remote Datajack Improved Remote Datajack Chainsword [Rating: 138] Favorites ----------- Power Micro Fission Core Engine Improved Deuterium Engine Power Core Micro Fission Core Reactor Light Antimatter Reactor Propulsion Armored Wheel Treads Improved Treads Leg Carbon-fiber Leg Wheel Armored Wheel Hover Unit Aerolev Unit Flight Unit Improved VTOL Module Utility High-capacity Storage Unit Device Advanced Thermal Defense Suite Storage High-capacity Storage Unit Processor Advanced Signal Interpreter Hackware Relay Coupler [Sentry] Protection Hardened Medium Armor Plating Weapon Improved Remote Datajack Energy Gun Cooled Pulse Rifle Energy Cannon Long-range Proton Cannon Ballistic Gun Heavy Machine Gun Launcher Precision Rocket Launcher Special Weapon Improved Remote Datajack Impact Weapon Maul Slashing Weapon Chainsword Piercing Weapon Spear Special Melee Weapon Datajack Build | -11 -10 -9 -8 -8 -8 -7 -7 -7 -7 -6 -6 -6 -6 -5 -5 -5 -5 -4 -4 -4 -4 -3 -3 -3 -3 -2 -2 -1 -1 -1 ------- Run | Scr Mat Mat Mat Gar Mat Fac Gar Fac Gar Fac Gar Fac Gar Fac Gar Fac Gar Fac Gar Fac Gar Res Gar Res Gar Res Gar Acc Gar Acc Slots Evolved 18 | . . 2 2 . . 2 . . . 2 . . . 2 . . . 2 . . . 2 . . . 2 . 2 . . Power 3 | . . . . . . . . . . 1 . . . . . . . . . . . . . . . 1 . 1 . . Propulsion 1 | . . . . . . . . . . . . . . . . . . 1 . . . . . . . . . . . . Utility 14 | . . 2 2 . . 2 . . . 1 . . . 2 . . . 1 . . . 2 . . . 1 . 1 . . Weapon . | . . . . . . . . . . . . . . . . . . . . . . . . . . . . . . . Parts Attached 725 | 7 1 8 48 15 12 57 27 53 19 14 28 77 22 28 15 36 24 5 37 4 48 21 18 3 16 5 16 9 7 45 Power 57 | 1 . 2 4 2 . 4 2 2 1 2 2 6 1 2 1 2 1 . 5 . 2 1 2 . 1 1 1 2 3 4 Engine 20 | 1 . 1 . . . 3 2 . 1 1 2 5 . 1 1 . . . 1 . 1 . . . . . . . . . Core 22 | . . 1 4 2 . 1 . 2 . 1 . 1 1 1 . 2 1 . 1 . 1 . 1 . . . 1 . . 1 Reactor 15 | . . . . . . . . . . . . . . . . . . . 3 . . 1 1 . 1 1 . 2 3 3 Propulsion 77 | 3 . . 10 2 5 4 6 2 . . 1 8 2 3 2 3 3 2 4 1 3 . 2 . 3 . 2 . 1 5 Treads 22 | 1 . . 6 . 3 1 2 . . . 1 . 1 1 1 1 2 . 1 . . . . . . . . . . 1 Leg 4 | . . . . . . . 2 . . . . 1 . . . . 1 . . . . . . . . . . . . . Wheel 49 | 2 . . 3 2 1 3 2 2 . . . 7 1 2 1 2 . 2 3 1 3 . 2 . 3 . 2 . 1 4 Hover 1 | . . . 1 . . . . . . . . . . . . . . . . . . . . . . . . . . . Flight 1 | . . . . . 1 . . . . . . . . . . . . . . . . . . . . . . . . . Utility 258 | 1 1 1 16 1 1 16 5 25 6 6 9 32 7 12 7 9 11 2 9 2 11 11 10 2 10 4 6 3 2 20 Device 103 | . 1 . 5 . . 3 2 12 1 3 3 24 2 8 2 6 1 1 3 1 1 7 2 1 3 2 . 1 . 8 Storage 15 | 1 . . 4 . . . . 2 . . . 1 2 . 1 . . . 1 . . . . . 1 . 2 . . . Processor 10 | . . 1 2 . . 3 . . . . . . . 1 2 . . . . . 1 . . . . . . . . . Hackware 79 | . . . . . . 3 . 2 3 2 5 6 2 3 . 2 6 . 3 1 6 2 7 1 4 2 4 2 2 11 Protection 51 | . . . 5 1 1 7 3 9 2 1 1 1 1 . 2 1 4 1 2 . 3 2 1 . 2 . . . . 1 Artifact . | . . . . . . . . . . . . . . . . . . . . . . . . . . . . . . . Weapon 333 | 2 . 5 18 10 6 33 14 24 12 6 16 31 12 11 5 22 9 1 19 1 32 9 4 1 2 . 7 4 1 16 Energy Gun 43 | 2 . 4 7 1 2 12 1 3 2 . . 4 . 1 1 . . . . . . . . . . . . . 1 2 Energy Cannon 70 | . . . 3 . 3 7 5 . 2 1 3 3 . . 2 4 3 1 6 . 15 4 2 1 1 . 2 1 . 1 Ballistic Gun 34 | . . 1 4 3 . . 6 8 . . 1 2 1 1 . 5 2 . . . . . . . . . . . . . Ballistic Cannon . | . . . . . . . . . . . . . . . . . . . . . . . . . . . . . . . Launcher 57 | . . . . 2 1 9 . 3 3 2 6 6 4 2 2 2 1 . 2 . 3 . 1 . . . 2 1 . 5 Special Weapon 63 | . . . . . . . . 3 3 3 4 10 4 3 . 4 3 . 6 . 9 2 1 . . . 1 2 . 5 Impact Weapon 1 | . . . . . . . . . . . . . . . . . . . . . . 1 . . . . . . . . Slashing Weapon 63 | . . . 4 4 . 4 2 6 2 . 2 6 3 4 . 7 . . 5 1 5 2 . . 1 . 2 . . 3 Piercing Weapon 1 | . . . . . . . . 1 . . . . . . . . . . . . . . . . . . . . . . Special Melee Weapon 1 | . . . . . . 1 . . . . . . . . . . . . . . . . . . . . . . . . Unidentified Prototypes 11 | . . . 3 . 1 2 . 2 . . . . . . 1 . . . . . . 1 . . . . . . 1 . Parts Lost 121 | . . 2 16 4 2 15 7 5 3 2 2 12 3 3 4 4 2 . 1 . 5 . 1 . 1 . . . . 27 Power 25 | . . . 4 2 . 1 1 1 . 2 1 4 1 1 1 . . . . . 1 . . . . . . . . 5 Propulsion 28 | . . . 3 . . 2 1 1 . . 1 4 1 1 . 3 2 . 1 . 1 . . . . . . . . 7 Utility 37 | . . 1 3 . 1 5 3 2 1 . . 1 1 1 1 1 . . . . 1 . 1 . 1 . . . . 13 Weapon 31 | . . 1 6 2 1 7 2 1 2 . . 3 . . 2 . . . . . 2 . . . . . . . . 2 Highest Loss Streak 17 | . . 1 4 2 1 5 2 2 1 1 2 3 2 1 2 3 1 . 1 . 2 . 1 . 1 . . . . 17 Average Slot Usage (%) 93 | . 98 82 87 94 94 94 97 97 94 94 92 90 95 96 95 98 95 94 94 89 90 91 93 95 94 99 97 96 96 90 Engine 2 | . 14 4 . . . 5 7 1 . 6 9 7 . 1 8 3 . . . . 1 4 1 . . . . . . . Core 4 | . . 6 8 8 9 1 . 5 6 1 . . 11 8 2 7 11 10 5 . 4 1 2 4 4 4 7 8 1 . Reactor 2 | . . . . . . . . . . . . . . . . . . . 4 10 3 2 4 4 4 8 4 6 14 14 Treads 3 | . 14 11 13 9 8 6 2 . . . 1 1 4 . 4 . 6 6 6 . . . . . . . . . . . Wheel 10 | . 14 11 3 8 9 7 8 14 15 13 10 9 7 11 5 10 2 6 8 15 14 14 14 14 14 13 13 12 12 10 Device 6 | . 12 7 4 9 9 4 5 11 2 5 2 5 5 12 5 14 6 4 4 . . 8 7 6 7 12 8 11 8 9 Storage 15 | . 14 11 15 18 18 15 15 15 15 13 13 13 13 17 20 17 17 15 15 15 15 14 14 14 15 13 14 16 16 13 Processor 7 | . . 8 12 9 9 16 17 8 7 6 6 6 6 8 12 5 5 5 5 5 7 9 4 4 4 4 4 4 4 3 Hackware 21 | . . . . . . 5 8 13 23 24 27 31 26 18 18 18 20 21 26 30 28 22 27 30 30 33 35 32 32 31 Protection 6 | . . . 11 18 15 15 11 10 8 6 5 . 3 1 3 5 8 11 6 5 5 4 4 4 1 . . . . . Energy Gun 1 | . 28 18 10 . 4 7 2 1 . . . 1 . 1 . . . . . . . . . . . . . . 3 . Energy Cannon 2 | . . . 4 1 9 3 6 . 4 . . . . . 3 1 4 5 2 . 2 . . 4 3 4 . 1 . . Ballistic Gun 1 | . . 3 2 4 . . 4 5 . . 2 1 3 2 . 1 . . . . . . . . . . . . . . Special Weapon 2 | . . . . . . . . 1 3 4 3 4 3 4 . 2 4 4 4 4 3 3 4 4 4 4 3 3 4 3 Slashing Weapon 1 | . . . . 5 2 . 1 3 2 6 2 2 2 . 1 3 . . 1 . 1 1 1 . . . 2 . . . Naked Turns . | . . . . . . . . . . . . . . . . . . . . . . . . . . . . . . . Heaviest Build 210 | 10 12 17 102 95 98 101 104 108 119 113 125 108 113 131 137 134 131 142 165 146 165 165 190 190 189 205 189 209 207 210 Greatest Support 46 | 20 10 20 40 40 40 24 40 24 24 24 24 32 28 28 26 32 46 46 46 40 40 40 40 40 40 40 40 40 40 40 Greatest Overweight (x) 30 | . 1 1 9 3 5 8 8 8 4 4 8 30 9 8 13 7 12 12 15 3 5 4 4 4 5 5 4 5 5 7 Average Overweight (x) 4 | . . . 1 2 2 6 4 3 3 3 5 3 6 4 11 3 5 5 6 3 3 3 3 4 3 4 4 4 4 3 Largest Inventory Capacity 34 | 6 6 6 26 20 20 20 20 20 20 20 20 20 26 26 26 26 26 26 28 28 28 28 28 28 34 34 34 34 34 34 Average Capacity 24 | 5 6 6 15 20 20 20 20 20 20 20 20 20 20 26 26 26 26 26 26 28 28 28 28 28 29 29 29 34 34 29 Most Carried 34 | 3 3 6 18 20 20 20 20 20 20 20 20 20 22 26 26 26 26 26 28 28 28 28 28 28 34 33 34 34 34 33 Average Carried 22 | 1 3 4 12 18 19 19 18 19 19 18 18 18 19 23 23 25 25 25 25 27 27 26 27 28 29 28 28 32 33 25 Final Capacity 34 | 6 6 6 20 20 20 20 20 20 20 20 20 20 26 26 26 26 26 26 28 28 28 28 28 28 34 28 34 34 34 4 Final Carried 34 | 3 3 6 18 20 20 19 19 20 20 19 20 20 22 26 22 25 26 25 28 28 28 28 28 28 34 27 34 32 34 4 Class Distribution -------------------- 62% | Botlord-Mutant 20% | Hauler-Mutant 6% | Bothacker-Mutant 4% | Scavenger-Mutant 3% | Mutant Dominant Class ---------------- Mutant | -10/Materials Mutant | -9/Materials Hauler-Mutant | -8/Materials Hauler-Mutant | -8/Garrison Hauler-Mutant | -8/Materials Hauler-Mutant | -7/Factory Scavenger-Mutant | -7/Garrison Hauler-Mutant | -7/Factory Bothacker-Mutant | -7/Garrison Bothacker-Mutant | -6/Factory Bothacker-Mutant | -6/Garrison Botlord-Mutant | -6/Factory Botlord-Mutant | -6/Garrison Botlord-Mutant | -5/Factory Hauler-Mutant | -5/Garrison Botlord-Assassin | -5/Factory Botlord-Mutant | -5/Garrison Botlord-Mutant | -4/Factory Botlord-Mutant | -4/Garrison Botlord-Mutant | -4/Factory Botlord-Mutant | -4/Garrison Botlord-Mutant | -3/Research Botlord-Mutant | -3/Garrison Botlord-Mutant | -3/Research Botlord-Mutant | -3/Garrison Botlord-Mutant | -2/Research Botlord-Mutant | -2/Garrison Botlord-Mutant | -1/Access Botlord-Mutant | -1/Garrison Botlord-Mutant | -1/Access Resources | -11 -10 -9 -8 -8 -8 -7 -7 -7 -7 -6 -6 -6 -6 -5 -5 -5 -5 -4 -4 -4 -4 -3 -3 -3 -3 -2 -2 -1 -1 -1 ----------- Run | Scr Mat Mat Mat Gar Mat Fac Gar Fac Gar Fac Gar Fac Gar Fac Gar Fac Gar Fac Gar Fac Gar Res Gar Res Gar Res Gar Acc Gar Acc Matter Collected 13450 | 104 . 270 680 522 174 552 540 703 577 309 669 1203 259 441 277 677 608 172 682 . 1135 304 468 29 434 96 469 128 433 535 Remotely 337 | . . . . . . . . . . . . . . . . . 337 . . . . . . . . . . . . . Salvage Created 15384 | 64 . 520 2628 731 338 2035 1231 815 467 341 590 1302 67 479 83 428 304 349 1026 . 796 120 198 29 115 . 138 77 . 113 Parts 647 | . . 28 114 33 12 80 55 35 12 16 28 61 7 26 4 22 21 13 31 . 22 1 6 3 5 . 6 1 . 5 Haulers Intercepted 14 | . . 2 5 . 1 3 . 1 . . . 1 . . . . . . . . . 1 . . . . . . . . Recyclers Shooed 15 | . . 1 1 . . . . 5 . 1 . 2 . 1 . 2 . 1 . . . . . . . 1 . . . . Parts Field Recycled 1 | . . . . . . . . . . . . . . . 1 . . . . . . . . . . . . . . . Retrieved Matter 3 | . . . . . . . . . . . . . . . 3 . . . . . . . . . . . . . . . Parts Self-Destructed . | . . . . . . . . . . . . . . . . . . . . . . . . . . . . . . . Prevented . | . . . . . . . . . . . . . . . . . . . . . . . . . . . . . . . Kills | -11 -10 -9 -8 -8 -8 -7 -7 -7 -7 -6 -6 -6 -6 -5 -5 -5 -5 -4 -4 -4 -4 -3 -3 -3 -3 -2 -2 -1 -1 -1 ------- Run | Scr Mat Mat Mat Gar Mat Fac Gar Fac Gar Fac Gar Fac Gar Fac Gar Fac Gar Fac Gar Fac Gar Res Gar Res Gar Res Gar Acc Gar Acc Combat Hostiles Destroyed 245 | . . 10 37 16 5 33 17 10 12 5 16 17 6 11 5 7 11 2 11 . 10 . . . 1 . 2 . . 1 Melee 31 | . . . . 4 . 4 4 4 1 . 2 3 . 2 . 3 . . 4 . . . . . . . . . . . Guns 65 | . . 10 29 1 . 12 5 4 1 . . 1 . . . 1 1 . . . . . . . . . . . . . Cannons 41 | . . . 8 1 5 3 6 . 3 1 4 . . . 1 . 2 1 3 . 2 . . . 1 . . . . . AOE 97 | . . . . 8 . 12 1 2 5 4 10 13 6 9 4 3 7 . 4 . 6 . . . . . 2 . . 1 Classes Destroyed 19 | 1 . 5 3 . 1 4 . . . 1 1 . . . 1 . . . . . 1 . . . . . . 1 . . Worker 16 | . . . 1 . . 3 . 3 . 1 . 2 . 1 . 1 . 1 . . . . . . . . . 1 . 2 Builder 12 | . . . 1 . . 1 . 1 . 2 . 4 . 1 . 1 . . . . . . . 1 . . . . . . Tunneler 2 | . . . . . . . . . . 1 . . . . . . . 1 . . . . . . . . . . . . Hauler 14 | . . 2 5 . 1 3 . 1 . . . 1 . . . . . . . . . 1 . . . . . . . . Recycler 21 | 1 . . 6 . . 3 . 3 . 1 . 4 . 1 . 1 . 1 . . . . . . . . . . . . Carrier 1 | . . . . . . . . . . . . . . . . . . . . . 1 . . . . . . . . . Mechanic 3 | . . . . . . 1 . . . . . . . 1 . . . . . . . . . . . . . . . 1 Operator 4 | . . . 1 . 1 . . . . . . . . 1 . 1 . . . . . . . . . . . . . . Drone 1 | . . . . . . . . . . . . . . . 1 . . . . . . . . . . . . . . . Watcher 9 | . . 2 1 . 1 . 1 . . . . 1 . 1 . . . . . . 1 . . . 1 . . . . . Swarmer 51 | . . 3 4 4 . 3 . 2 3 . 4 5 6 5 . 2 8 . . . 2 . . . . . . . . . Grunt 113 | . . 5 25 8 3 18 10 4 8 4 9 5 . 4 . 1 1 . 8 . . . . . . . . . . . Brawler 4 | . . . . . . 2 2 . . . . . . . . . . . . . . . . . . . . . . . Duelist 4 | . . . . . . 1 . . . . . 2 . . . . . . . . . . . . 1 . . . . . Sentry 35 | . . 2 8 4 1 4 4 2 . . 1 . . . 1 1 2 2 . . 3 . . . . . . . . . Demolisher 1 | . . . . . . . . . . . . . . . . . . . . . . . . . . . . 1 . . Hunter 12 | . . . . . 1 2 1 . . 1 . 4 . . 3 . . . . . . . . . . . . . . . Programmer 22 | . . . . . . 3 . 2 1 . 1 1 . 2 . 3 . . 2 . 4 . . . . . 2 . . 1 Behemoth 3 | . . . . . . . . . . . 1 . . . . . . . 1 . 1 . . . . . . . . . Best Kill Streak 9 | 1 . 5 9 6 2 8 8 3 4 4 5 5 5 8 2 3 4 2 3 . 4 1 . 1 1 . 2 1 . 3 Combat Bots Only 8 | . . 5 6 6 2 8 8 2 4 4 5 3 5 5 2 2 4 1 3 . 4 . . . 1 . 2 . . 1 Max Kills in Single Turn 6 | 1 . 1 1 3 1 6 1 2 1 3 2 3 2 4 1 1 3 1 2 . 2 1 . 1 1 . 1 1 . 3 Gunslinging 1 | . . . . . . 1 . . . . . . . . . . . . . . . . . . . . . . . . Exploded 4 | . . . . 3 . 3 1 1 1 2 2 3 2 4 1 1 3 . 2 . 2 . . . . . 1 . . 1 Melee 1 | . . . . 1 . 1 1 1 1 . 1 1 . 1 . 1 . . 1 . . . . . . . . . . . Uniques/NPCs Destroyed . | . . . . . . . . . . . . . . . . . . . . . . . . . . . . . . . Combat | -11 -10 -9 -8 -8 -8 -7 -7 -7 -7 -6 -6 -6 -6 -5 -5 -5 -5 -4 -4 -4 -4 -3 -3 -3 -3 -2 -2 -1 -1 -1 -------- Run | Scr Mat Mat Mat Gar Mat Fac Gar Fac Gar Fac Gar Fac Gar Fac Gar Fac Gar Fac Gar Fac Gar Res Gar Res Gar Res Gar Acc Gar Acc Damage Taken 23036 | . . 377 2734 805 455 2667 1666 1102 670 237 534 1474 365 333 700 528 435 72 755 . 1422 79 390 22 282 161 239 84 330 4118 Core 3833 | . . 74 352 125 61 240 179 91 158 32 61 355 33 4 66 50 56 13 79 . 102 . 57 . 8 . 22 . 32 1583 Absorbed by Shields 4001 | . . 134 . 41 . 47 . 49 61 . 257 121 197 177 277 146 227 75 359 . 11 23 159 . 291 153 227 79 291 599 Core Remaining (%) 68 | 100 100 81 . . 2 . . . 4 . . . 43 . . . 82 . . . 83 . . . 95 . 98 . . . Volleys Fired 1266 | 6 1 60 173 42 22 89 66 41 35 19 46 93 12 17 24 30 48 16 42 3 85 24 41 10 58 13 37 21 33 59 Largest 2 | 2 2 2 2 2 2 2 2 2 2 1 2 2 1 1 2 2 2 2 2 1 2 1 1 1 1 1 1 1 1 1 Hottest 188 | 90 90 112 118 88 160 143 138 50 89 69 108 108 43 65 146 162 111 162 162 40 188 94 94 94 94 94 94 94 40 94 Shots Fired 1712 | 12 2 112 346 62 34 158 104 68 40 19 49 94 13 17 28 40 49 18 47 3 100 24 41 10 58 13 37 21 34 59 Gun 767 | 12 2 112 290 43 8 113 55 58 4 . 7 34 4 2 2 17 2 . . . . . . . . . . . 1 1 Cannon 407 | . . . 56 11 24 26 49 . 23 4 16 6 . . 12 4 22 16 30 . 49 9 5 2 27 5 2 5 . 4 Launcher 159 | . . . . 8 2 19 . 5 7 9 18 16 5 8 10 9 6 . 6 . 12 . 2 . . . 8 2 . 7 Special 379 | . . . . . . . . 5 6 6 8 38 4 7 4 10 19 2 11 3 39 15 34 8 31 8 27 14 33 47 Kinetic 229 | . . 12 61 36 . . 40 31 . . 7 19 4 . . 17 2 . . . . . . . . . . . . . Thermal 498 | 12 2 100 229 7 8 94 15 27 4 . . . . . . . . . . . . . . . . . . . . . Explosive 139 | . . . . . 2 7 . 5 7 9 18 16 5 8 10 9 6 . 6 . 12 . 2 . . . 8 2 . 7 Electromagnetic 467 | . . . 56 19 24 57 49 . 23 4 16 21 . 2 14 4 22 16 30 . 49 9 5 2 27 5 2 5 1 5 Robot Hit Streak 27 | 7 8 11 23 20 9 16 16 17 10 14 17 21 10 21 25 7 9 11 20 21 15 27 12 13 17 2 10 4 5 9 Robot Miss Streak 6 | 2 1 4 6 3 5 2 4 5 2 5 1 4 . . 2 2 2 1 1 1 3 2 1 2 3 2 2 2 1 3 Penetration Max . | . . . . . . . . . . . . . . . . . . . . . . . . . . . . . . . Secondary Targets 11 | . . . 9 1 . 1 . . . . . . . . . . . . . . . . . . . . . . . . Max Gunslinging Chain 1 | . . . 1 1 . 1 . . . . . . . . . . . . . . . . . . . . . . . . Shots Hit Robots 1241 | 8 1 75 248 42 26 127 81 55 24 10 40 90 5 18 15 37 24 16 51 2 57 20 29 7 36 7 21 10 21 38 Core Hits 603 | 2 . 26 93 25 15 87 30 24 15 27 33 48 8 25 17 19 12 10 22 . 32 1 6 1 3 . 6 4 . 12 Critical Hits 14 | . . . . . . 2 1 1 . . 1 2 . 2 . 1 1 . 1 . 1 . . . 1 . . . . . Critical Kills 6 | . . . . . . . 1 1 . . . . . 1 . 1 1 . . . . . . . 1 . . . . . Critical Parts Destroyed 7 | . . . . . . 2 . . . . 1 2 . 1 . . . . . . 1 . . . . . . . . . Melee Attacks 315 | . . . 13 26 . 20 10 50 6 6 13 35 10 15 3 42 . . 32 1 3 1 7 . 7 . 8 . . 7 Impact . | . . . . . . . . . . . . . . . . . . . . . . . . . . . . . . . Slashing 312 | . . . 13 26 . 17 10 50 6 6 13 35 10 15 3 42 . . 32 1 3 1 7 . 7 . 8 . . 7 Piercing . | . . . . . . . . . . . . . . . . . . . . . . . . . . . . . . . Sneak Attacks 21 | . . . . . . 2 . 6 . 3 . 7 . . . 3 . . . . . . . . . . . . . . Combat Hostiles . | . . . . . . . . . . . . . . . . . . . . . . . . . . . . . . . Follow-up Attacks . | . . . . . . . . . . . . . . . . . . . . . . . . . . . . . . . Damage Inflicted 38982 | 84 13 922 5045 1315 756 4616 2137 1918 1045 976 2608 3984 639 1690 1089 1729 1048 701 1925 . 2172 309 303 83 473 115 460 198 . 629 Guns 9395 | 84 13 922 4010 355 54 1677 801 687 18 . 24 535 25 48 . 119 23 . . . . . . . . . . . . . Cannons 7956 | . . . 762 182 523 511 1011 . 426 31 330 121 . . 194 152 288 445 661 . 1007 269 211 83 473 115 87 74 . . Explosions 15744 | . . . 89 443 179 1947 104 120 527 640 1998 2085 572 1387 895 879 737 256 476 . 1165 40 92 . . . 373 124 . 616 Melee 5874 | . . . 184 335 . 481 221 1111 74 305 256 1243 42 255 . 579 . . 788 . . . . . . . . . . . Ramming 13 | . . . . . . . . . . . . . . . . . . . . . . . . . . . . . . 13 Kinetic 2594 | . . 73 854 256 . . 551 335 . . 24 334 25 . . 119 23 . . . . . . . . . . . . . Thermal 7883 | 84 13 849 3245 180 111 2048 354 352 116 . 68 167 . . . . . 256 . . . 40 . . . . . . . . Explosive 13115 | . . . . . 122 640 . 120 429 640 1930 1918 572 1387 895 879 737 . 476 . 1165 . 92 . . . 373 124 . 616 Electromagnetic 9503 | . . . 762 544 523 1447 1011 . 426 31 330 322 . 48 194 152 288 445 661 . 1007 269 211 83 473 115 87 74 . . Impact . | . . . . . . . . . . . . . . . . . . . . . . . . . . . . . . . Slashing 5874 | . . . 184 335 . 481 221 1111 74 305 256 1243 42 255 . 579 . . 788 . . . . . . . . . . . Piercing . | . . . . . . . . . . . . . . . . . . . . . . . . . . . . . . . Highest Corruption 14 | . . . 6 6 7 5 11 14 14 3 4 6 6 2 2 4 4 . 6 6 8 . . . . . 1 . 5 12 Average Corruption 5 | . . . 5 6 6 3 9 12 14 2 3 4 6 1 2 2 4 . 5 6 7 . . . . . 1 . 4 5 Corruption Purged . | . . . . . . . . . . . . . . . . . . . . . . . . . . . . . . . Effects 797 | . . . 35 44 16 34 50 129 62 5 40 61 28 4 4 23 46 . 71 4 70 . . . . . 7 . 22 42 Message Errors 183 | . . . 7 11 6 12 11 21 8 2 11 10 11 1 2 3 16 . 16 . 20 . . . . . 3 . 7 5 Matter Fused 168 | . . . 4 14 3 2 8 20 9 2 11 13 3 . . 7 13 . 20 1 21 . . . . . . . 6 11 Heat Flow Errors 80 | . . . 3 2 2 7 3 10 6 . 3 11 2 . . 4 3 . 10 1 8 . . . . . . . 2 3 Energy Discharges 84 | . . . 2 3 1 4 6 13 6 1 8 7 3 2 . 2 5 . 5 . 4 . . . . . 3 . 1 8 Parts Rejected 6 | . . . . . . . . 1 1 . . . . . . . 1 . . . . . . . . . . . . 3 Data Loss (minor) 89 | . . . 4 6 . 6 2 12 5 . 5 10 3 1 1 3 5 . 8 1 10 . . . . . 1 . 1 5 Data Loss (major) 31 | . . . 1 1 1 1 2 6 3 . . . 2 . . . . . 7 . 2 . . . . . . . 2 3 Misfires 20 | . . . 3 3 1 . 3 4 1 . . 1 1 . . . . . 2 . . . . . . . . . 1 . Alerts 1 | . . . . . . . . 1 . . . . . . . . . . . . . . . . . . . . . . Misdirections 42 | . . . . . . . 3 24 15 . . . . . . . . . . . . . . . . . . . . . Targeting Errors 85 | . . . 11 4 2 2 11 12 8 . 2 8 3 . 1 4 3 . 3 1 4 . . . . . . . 2 4 Weapon Failures 8 | . . . . . . . 1 5 . . . 1 . . . . . . . . 1 . . . . . . . . . Overload Shots . | . . . . . . . . . . . . . . . . . . . . . . . . . . . . . . . Overflow Damage 1414 | . . . 59 21 43 82 . 175 . 73 106 233 47 129 1 216 46 . 3 . 82 30 . 12 . 15 . . . 41 Projectiles 147 | . . . 42 10 6 . . . . . . . . . . 27 5 . . . . 30 . 12 . 15 . . . . Explosions 593 | . . . . 11 37 32 . . . . 106 25 47 120 1 47 41 . 3 . 82 . . . . . . . . 41 Melee 674 | . . . 17 . . 50 . 175 . 73 . 208 . 9 . 142 . . . . . . . . . . . . . . Knockbacks . | . . . . . . . . . . . . . . . . . . . . . . . . . . . . . . . Impact . | . . . . . . . . . . . . . . . . . . . . . . . . . . . . . . . Kinetic . | . . . . . . . . . . . . . . . . . . . . . . . . . . . . . . . Secondary . | . . . . . . . . . . . . . . . . . . . . . . . . . . . . . . . Self-Inflicted Damage 611 | . . . . 4 31 54 . 1 126 . 13 59 . 16 79 39 57 44 . . 23 . 46 . . . 13 . . 6 Shots 27 | . . . . 1 1 6 . 1 4 . 1 2 . 1 2 2 2 1 . . 1 . 1 . . . 1 . . . Rammed 2 | . . . . . . . . . . . . . . . . . . . . . . . . . . . . . . 2 Targets Rammed 2 | . . . . . . . . . . . . . . . . . . . . . . . . . . . . . . 2 Kicked . | . . . . . . . . . . . . . . . . . . . . . . . . . . . . . . . Crushed . | . . . . . . . . . . . . . . . . . . . . . . . . . . . . . . . Highest Temperature 440 | 90 30 356 440 182 315 423 256 256 223 72 213 266 196 58 217 214 270 268 244 236 360 274 162 114 308 112 108 198 122 256 Average Temperature 82 | 46 17 134 116 36 83 91 92 73 63 25 37 65 47 19 62 64 66 87 87 91 94 54 40 36 77 38 25 71 41 49 Received Heat Transfer 4889 | . . 137 1224 351 207 647 678 264 223 66 217 249 . 4 51 36 66 8 129 . 102 13 21 . 30 . 24 . 8 134 Effects 35 | . . 4 15 . . 6 3 . . . . 1 . . . . 1 . . . . 3 . . 2 . . . . . Shutdowns 4 | . . . 3 . . 1 . . . . . . . . . . . . . . . . . . . . . . . . Energy Bleed 5 | . . . 1 . . . . . . . . 1 . . . . 1 . . . . . . . 2 . . . . . Interference 16 | . . 3 7 . . . 3 . . . . . . . . . . . . . . 3 . . . . . . . . Matter Decay 2 | . . 1 1 . . . . . . . . . . . . . . . . . . . . . . . . . . . Damage (minor) 4 | . . . 3 . . 1 . . . . . . . . . . . . . . . . . . . . . . . . Damage (major) 4 | . . . . . . 4 . . . . . . . . . . . . . . . . . . . . . . . . Siege Activations . | . . . . . . . . . . . . . . . . . . . . . . . . . . . . . . . Robots Corrupted 24 | . . . . 2 . 1 3 . 2 . . 2 . . . . 1 1 3 . 6 1 1 . . . 1 . . . Combat Hostiles 10 | . . . . 2 . 1 1 . 2 . . . . . . . 1 1 . . 2 . . . . . . . . . Parts Fried 46 | . . . 3 1 3 3 5 . . . . 3 . . . 2 . 8 4 . 6 2 . 2 3 . . 1 . . Impact Corruptions . | . . . . . . . . . . . . . . . . . . . . . . . . . . . . . . . Robots Melted 2 | . . 1 . . . 1 . . . . . . . . . . . . . . . . . . . . . . . . Combat Hostiles 1 | . . . . . . 1 . . . . . . . . . . . . . . . . . . . . . . . . Parts Melted 29 | . . 4 18 . . 4 . . . . 1 . . 1 . . . . 1 . . . . . . . . . . . Heat Transferred 14477 | 223 37 2421 6353 309 175 3075 531 666 137 . 50 150 . . . . . 300 . . . 50 . . . . . . . . Parts Sabotaged 12 | . . . . . . . . . . 3 . 3 . . . . . . . . . . . . 2 . . . . 4 Parts Stolen . | . . . . . . . . . . . . . . . . . . . . . . . . . . . . . . . Parts Stripped . | . . . . . . . . . . . . . . . . . . . . . . . . . . . . . . . Power Chain Reactions 14 | . . . 2 2 1 . 2 . 2 . 1 2 . . . . . 1 . . . 1 . . . . . . . . Missiles Intercepted . | . . . . . . . . . . . . . . . . . . . . . . . . . . . . . . . Alert | -11 -10 -9 -8 -8 -8 -7 -7 -7 -7 -6 -6 -6 -6 -5 -5 -5 -5 -4 -4 -4 -4 -3 -3 -3 -3 -2 -2 -1 -1 -1 ------- Run | Scr Mat Mat Mat Gar Mat Fac Gar Fac Gar Fac Gar Fac Gar Fac Gar Fac Gar Fac Gar Fac Gar Res Gar Res Gar Res Gar Acc Gar Acc Peak Influence 2811 | 5 3 338 719 1325 935 1210 1507 931 1103 1063 1428 1038 1379 808 811 688 997 840 1397 749 1208 1107 1462 977 1501 1167 1493 1444 1763 2811 Initial 1155 | . 3 . 64 429 645 341 824 791 485 578 618 749 705 723 565 425 471 522 588 732 524 679 798 822 732 843 845 895 1155 1051 Average 956 | . 3 200 402 986 728 653 1196 706 840 804 1062 742 1127 628 686 488 858 603 1188 741 943 959 1268 878 1274 947 1256 1104 1604 1914 Maximum Alert Level 5 | . . 1 3 4 3 4 4 3 4 3 4 3 4 3 3 2 3 3 4 3 4 4 4 3 4 4 4 4 5 5 Low Security (%) 2 | 100 100 60 19 . . . . . . . . . . . . . . . . . . . . . . . . . . . Level 1 3 | . . 39 16 . . 16 . . . . . . . . . 23 . . . . . . . . . . . . . . Level 2 23 | . . . 63 16 48 38 . 56 25 38 7 36 . 55 54 76 23 87 3 . 17 12 . . . . . . . . Level 3 34 | . . . . 37 51 35 34 43 68 61 38 63 42 44 45 . 76 12 21 100 45 86 16 100 19 86 16 55 1 3 Level 4 32 | . . . . 45 . 8 65 . 6 . 54 . 57 . . . . . 74 . 37 1 83 . 80 13 83 44 29 33 Level 5 3 | . . . . . . . . . . . . . . . . . . . . . . . . . . . . . 69 36 High Security . | . . . . . . . . . . . . . . . . . . . . . . . . . . . . . . 25 Max Security . | . . . . . . . . . . . . . . . . . . . . . . . . . . . . . . . Squads Dispatched 108 | . . . 5 . 2 17 . 8 . 5 . 14 . 4 . 5 . 1 . . . 2 . 1 . 3 . 8 . 33 Investigation 12 | . . . 3 . . 3 . 3 . 1 . . . . . . . 1 . . . . . 1 . . . . . . Extermination 11 | . . . . . . 3 . 2 . . . 2 . 1 . 2 . . . . . . . . . . . . . 1 Reinforcement 32 | . . . 2 . 2 4 . 3 . 2 . 6 . 2 . 1 . . . . . 1 . . . 1 . 4 . 4 Assault 39 | . . . . . . 4 . . . 2 . 3 . 1 . 1 . . . . . 1 . . . 1 . 3 . 23 Garrison 14 | . . . . . . 3 . . . . . 3 . . . 1 . . . . . . . . . 1 . 1 . 5 Intercept . | . . . . . . . . . . . . . . . . . . . . . . . . . . . . . . . Construction Impeded 11 | . . . 1 . 1 1 . . . 1 . 1 . 1 . 1 . . . . . . . . . . . 1 . 3 Haulers Reinforced 11 | . . . . . . 2 . 2 . 1 . 2 . . . . . . . . . 1 . . . 1 . 1 . 1 Stealth | -11 -10 -9 -8 -8 -8 -7 -7 -7 -7 -6 -6 -6 -6 -5 -5 -5 -5 -4 -4 -4 -4 -3 -3 -3 -3 -2 -2 -1 -1 -1 --------- Run | Scr Mat Mat Mat Gar Mat Fac Gar Fac Gar Fac Gar Fac Gar Fac Gar Fac Gar Fac Gar Fac Gar Res Gar Res Gar Res Gar Acc Gar Acc Distress Signals 35 | . . 1 7 . 2 2 . . . 1 . 2 . 1 . 3 . . . . 2 . . 1 . . . 5 . 8 Communications Jammed . | . . . . . . . . . . . . . . . . . . . . . . . . . . . . . . . Distress Signals . | . . . . . . . . . . . . . . . . . . . . . . . . . . . . . . . Times Spotted 897 | . . 24 70 19 20 69 28 27 21 17 29 57 24 22 10 24 28 2 27 1 37 14 36 3 45 22 25 26 28 142 Peak Tracking Total 22 | . . 6 7 6 5 7 8 3 3 6 5 5 4 7 5 4 6 1 4 1 11 3 6 3 6 5 7 12 7 22 Tactical Retreats 97 | . . 3 17 5 4 9 11 2 4 . 7 4 8 . 1 . 1 . 2 . 5 . 1 . 3 . . . 1 9 Traps | -11 -10 -9 -8 -8 -8 -7 -7 -7 -7 -6 -6 -6 -6 -5 -5 -5 -5 -4 -4 -4 -4 -3 -3 -3 -3 -2 -2 -1 -1 -1 ------- Run | Scr Mat Mat Mat Gar Mat Fac Gar Fac Gar Fac Gar Fac Gar Fac Gar Fac Gar Fac Gar Fac Gar Res Gar Res Gar Res Gar Acc Gar Acc Traps Triggered 91 | . . . 2 15 1 1 3 5 7 2 6 3 3 . 3 3 6 1 5 . 7 . 4 2 4 . 2 . 4 2 Indirectly 3 | . . . . 3 . . . . . . . . . . . . . . . . . . . . . . . . . . Trap Hack Attempts . | . . . . . . . . . . . . . . . . . . . . . . . . . . . . . . . Triggered . | . . . . . . . . . . . . . . . . . . . . . . . . . . . . . . . Disarmed . | . . . . . . . . . . . . . . . . . . . . . . . . . . . . . . . Reprogrammed . | . . . . . . . . . . . . . . . . . . . . . . . . . . . . . . . Reused . | . . . . . . . . . . . . . . . . . . . . . . . . . . . . . . . Traps Extracted . | . . . . . . . . . . . . . . . . . . . . . . . . . . . . . . . Installed . | . . . . . . . . . . . . . . . . . . . . . . . . . . . . . . . Triggered 1 | . . . . 1 . . . . . . . . . . . . . . . . . . . . . . . . . . Machines | -11 -10 -9 -8 -8 -8 -7 -7 -7 -7 -6 -6 -6 -6 -5 -5 -5 -5 -4 -4 -4 -4 -3 -3 -3 -3 -2 -2 -1 -1 -1 ---------- Run | Scr Mat Mat Mat Gar Mat Fac Gar Fac Gar Fac Gar Fac Gar Fac Gar Fac Gar Fac Gar Fac Gar Res Gar Res Gar Res Gar Acc Gar Acc Machines Disabled 101 | . . . 6 6 . 9 1 1 6 7 6 6 3 4 2 4 6 . 6 . 5 3 5 . 5 1 3 1 1 4 Max in Single Turn 4 | . . . 1 2 . 4 1 1 1 4 1 2 1 1 1 1 1 . 1 . 1 1 1 . 1 . 1 . . 1 Garrison Access 2 | . . . . . . 1 . . . . . . . . . . . . . . . . . . . . . . . 1 Garrison Relay 42 | . . . . 3 . . 1 . 3 . 4 . 3 . 1 . 4 . 5 . 5 . 4 . 5 . 3 . 1 . Phase Generator 1 | . . . . 1 . . . . . . . . . . . . . . . . . . . . . . . . . . Machines Sabotaged . | . . . . . . . . . . . . . . . . . . . . . . . . . . . . . . . Garrisons Compromised . | . . . . . . . . . . . . . . . . . . . . . . . . . . . . . . . Overloaded Fab Kills . | . . . . . . . . . . . . . . . . . . . . . . . . . . . . . . . Fab Network Shutdowns . | . . . . . . . . . . . . . . . . . . . . . . . . . . . . . . . Hacking | -11 -10 -9 -8 -8 -8 -7 -7 -7 -7 -6 -6 -6 -6 -5 -5 -5 -5 -4 -4 -4 -4 -3 -3 -3 -3 -2 -2 -1 -1 -1 --------- Run | Scr Mat Mat Mat Gar Mat Fac Gar Fac Gar Fac Gar Fac Gar Fac Gar Fac Gar Fac Gar Fac Gar Res Gar Res Gar Res Gar Acc Gar Acc Machines Accessed 70 | . . . 10 . 2 12 . 13 . 3 . 8 . 9 . 3 . 1 . 2 . 3 . 1 . 2 . 1 . . Terminals 35 | . . . 8 . 2 3 . 8 . 2 . 2 . 5 . 2 . . . 1 . 1 . . . 1 . . . . Fabricators 5 | . . . . . . 2 . 2 . . . 1 . . . . . . . . . . . . . . . . . . Repair Stations 8 | . . . 1 . . 2 . . . . . 3 . 2 . . . . . . . . . . . . . . . . Recycling Units 1 | . . . . . . . . 1 . . . . . . . . . . . . . . . . . . . . . . Scanalyzers 6 | . . . . . . 2 . 1 . . . 1 . 1 . . . . . . . 1 . . . . . . . . Garrison Access 15 | . . . 1 . . 3 . 1 . 1 . 1 . 1 . 1 . 1 . 1 . 1 . 1 . 1 . 1 . . Total Hacks 170 | . . . 34 . 6 30 . 25 . 8 . 21 . 22 . 6 . 3 . 3 . 5 . 2 . 3 . 2 . . Successful 84 | . . . 17 . 3 18 . 10 . 1 . 13 . 11 . 1 . 2 . 1 . 3 . 2 . 1 . 1 . . Failed 86 | . . . 17 . 3 12 . 15 . 7 . 8 . 11 . 5 . 1 . 2 . 2 . . . 2 . 1 . . Catastrophic 23 | . . . 2 . 1 2 . 8 . 1 . . . 3 . 3 . . . 1 . 1 . . . 1 . . . . Database Lockouts . | . . . . . . . . . . . . . . . . . . . . . . . . . . . . . . . Manual 62 | . . . 18 . 8 9 . 7 . 4 . 2 . 7 . 1 . 2 . 1 . . . 1 . 1 . 1 . . Terminals 87 | . . . 29 . 6 8 . 12 . 7 . 6 . 11 . 4 . . . 1 . 2 . . . 1 . . . . Fabricators 11 | . . . . . . 5 . 4 . . . 2 . . . . . . . . . . . . . . . . . . Repair Stations 22 | . . . 3 . . 4 . . . . . 8 . 7 . . . . . . . . . . . . . . . . Recycling Units 1 | . . . . . . . . 1 . . . . . . . . . . . . . . . . . . . . . . Scanalyzers 20 | . . . . . . 7 . 6 . . . 3 . 2 . . . . . . . 2 . . . . . . . . Garrison Access 29 | . . . 2 . . 6 . 2 . 1 . 2 . 2 . 2 . 3 . 2 . 1 . 2 . 2 . 2 . . Terminal Hacks 12 | . . . 4 . . 1 . 3 . . . 1 . 2 . . . . . . . 1 . . . . . . . . Part Schematic 2 | . . . . . . 1 . . . . . 1 . . . . . . . . . . . . . . . . . . Robot Analysis 1 | . . . 1 . . . . . . . . . . . . . . . . . . . . . . . . . . . Level Access Points 1 | . . . . . . . . 1 . . . . . . . . . . . . . . . . . . . . . . Terminal Index 3 | . . . 1 . . . . 1 . . . . . 1 . . . . . . . . . . . . . . . . Unreport Threat 2 | . . . 1 . . . . 1 . . . . . . . . . . . . . . . . . . . . . . Registered Components 1 | . . . 1 . . . . . . . . . . . . . . . . . . . . . . . . . . . Zone Layout 2 | . . . . . . . . . . . . . . 1 . . . . . . . 1 . . . . . . . . Fabricator Hacks 3 | . . . . . . 1 . . . . . 2 . . . . . . . . . . . . . . . . . . Load Schematic 2 | . . . . . . 1 . . . . . 1 . . . . . . . . . . . . . . . . . . Build 1 | . . . . . . . . . . . . 1 . . . . . . . . . . . . . . . . . . Repair Station Hacks 16 | . . . 3 . . 3 . . . . . 5 . 5 . . . . . . . . . . . . . . . . Scan Component 10 | . . . 2 . . 2 . . . . . 3 . 3 . . . . . . . . . . . . . . . . Repair 6 | . . . 1 . . 1 . . . . . 2 . 2 . . . . . . . . . . . . . . . . Recycling Unit Hacks 1 | . . . . . . . . 1 . . . . . . . . . . . . . . . . . . . . . . Retrieve Components 1 | . . . . . . . . 1 . . . . . . . . . . . . . . . . . . . . . . Scanalyzer 15 | . . . . . . 6 . 4 . . . 3 . 1 . . . . . . . 1 . . . . . . . . Insert Component 8 | . . . . . . 3 . 1 . . . 2 . 1 . . . . . . . 1 . . . . . . . . Analyze 7 | . . . . . . 3 . 3 . . . 1 . . . . . . . . . . . . . . . . . . Garrison Access Hacks 15 | . . . 1 . . 3 . 1 . 1 . 1 . 1 . 1 . 1 . 1 . 1 . 1 . 1 . 1 . . Unlock Access 14 | . . . 1 . . 2 . 1 . 1 . 1 . 1 . 1 . 1 . 1 . 1 . 1 . 1 . 1 . . Seal Access 1 | . . . . . . 1 . . . . . . . . . . . . . . . . . . . . . . . . Unauthorized Hacks 22 | . . . 9 . 3 4 . 1 . . . 1 . 2 . . . 1 . . . . . 1 . . . . . . Terminals 16 | . . . 9 . 3 2 . . . . . . . 2 . . . . . . . . . . . . . . . . Track 5 | . . . 3 . 1 . . . . . . . . 1 . . . . . . . . . . . . . . . . Botnet 9 | . . . 5 . 1 2 . . . . . . . 1 . . . . . . . . . . . . . . . . Disrupt 1 | . . . . . 1 . . . . . . . . . . . . . . . . . . . . . . . . . Operators 1 | . . . 1 . . . . . . . . . . . . . . . . . . . . . . . . . . . Fabricators 1 | . . . . . . . . 1 . . . . . . . . . . . . . . . . . . . . . . Haulers 1 | . . . . . . . . 1 . . . . . . . . . . . . . . . . . . . . . . Repair Stations . | . . . . . . . . . . . . . . . . . . . . . . . . . . . . . . . Recycling Units . | . . . . . . . . . . . . . . . . . . . . . . . . . . . . . . . Scanalyzers . | . . . . . . . . . . . . . . . . . . . . . . . . . . . . . . . Garrison Access 5 | . . . . . . 2 . . . . . 1 . . . . . 1 . . . . . 1 . . . . . . Reprogram 5 | . . . . . . 2 . . . . . 1 . . . . . 1 . . . . . 1 . . . . . . Data Cores Recovered . | . . . . . . . . . . . . . . . . . . . . . . . . . . . . . . . Used . | . . . . . . . . . . . . . . . . . . . . . . . . . . . . . . . Hacking Detections 66 | . . . 10 . 2 11 . 13 . 2 . 7 . 9 . 3 . 1 . 2 . 3 . . . 2 . 1 . . Full Trace Events 7 | . . . 3 . . 3 . . . 1 . . . . . . . . . . . . . . . . . . . . Feedback Events 2 | . . . 1 . . 1 . . . . . . . . . . . . . . . . . . . . . . . . Corruption 2 | . . . 1 . . 1 . . . . . . . . . . . . . . . . . . . . . . . . Feedback Blocked . | . . . . . . . . . . . . . . . . . . . . . . . . . . . . . . . Robot Schematics Acquired . | . . . . . . . . . . . . . . . . . . . . . . . . . . . . . . . Robots Built . | . . . . . . . . . . . . . . . . . . . . . . . . . . . . . . . Matter . | . . . . . . . . . . . . . . . . . . . . . . . . . . . . . . . Time . | . . . . . . . . . . . . . . . . . . . . . . . . . . . . . . . Total Robot Build Rating . | . . . . . . . . . . . . . . . . . . . . . . . . . . . . . . . Part Schematics Acquired 7 | . . . . . . 4 . 1 . . . 2 . . . . . . . . . . . . . . . . . . Parts Built 2 | . . . . . . . . . . . . 2 . . . . . . . . . . . . . . . . . . Matter 212 | . . . . . . . . . . . . 212 . . . . . . . . . . . . . . . . . . Time 53 | . . . . . . . . . . . . 53 . . . . . . . . . . . . . . . . . . Total Part Build Rating 12 | . . . . . . . . . . . . 12 . . . . . . . . . . . . . . . . . . Parts Repaired 6 | . . . 1 . . 1 . . . . . 2 . 2 . . . . . . . . . . . . . . . . Time 265 | . . . 50 . . 44 . . . . . 66 . 105 . . . . . . . . . . . . . . . . Parts Recycled . | . . . . . . . . . . . . . . . . . . . . . . . . . . . . . . . Recycled Matter . | . . . . . . . . . . . . . . . . . . . . . . . . . . . . . . . Retrieved Matter . | . . . . . . . . . . . . . . . . . . . . . . . . . . . . . . . Retrieved Components 6 | . . . . . . . . 6 . . . . . . . . . . . . . . . . . . . . . . Parts Scanalyzed 6 | . . . . . . 3 . 1 . . . 1 . 1 . . . . . . . . . . . . . . . . Part Schematics Acquired 5 | . . . . . . 3 . 1 . . . 1 . . . . . . . . . . . . . . . . . . Parts Damaged . | . . . . . . . . . . . . . . . . . . . . . . . . . . . . . . . Bothacking | -11 -10 -9 -8 -8 -8 -7 -7 -7 -7 -6 -6 -6 -6 -5 -5 -5 -5 -4 -4 -4 -4 -3 -3 -3 -3 -2 -2 -1 -1 -1 ------------ Run | Scr Mat Mat Mat Gar Mat Fac Gar Fac Gar Fac Gar Fac Gar Fac Gar Fac Gar Fac Gar Fac Gar Res Gar Res Gar Res Gar Acc Gar Acc Used RIF Installer 13 | . . . . 1 . . 1 . 1 . 1 . 1 . 1 . 1 . 1 . 1 . 1 . 1 . 1 . 1 . Coupler Efficiency 2 | . . . . . . . . . . . 1 . . . . . . . . . . . . . . . 1 . . . Command Fork 2 | . . . . . . . . . . . . . . . 1 . . . . . . . . . . . . . 1 . Threat Obfuscator 1 | . . . . . . . . . . . . . . . . . . . . . . . 1 . . . . . . . Zone Cloak 2 | . . . . . . . 1 . . . . . . . . . . . . . 1 . . . . . . . . . Patrol Navigation 1 | . . . . . . . . . . . . . 1 . . . . . . . . . . . . . . . . . Structural Interface 1 | . . . . . . . . . . . . . . . . . 1 . . . . . . . . . . . . . Program Shield 1 | . . . . . . . . . 1 . . . . . . . . . . . . . . . . . . . . . Autooverride 1 | . . . . . . . . . . . . . . . . . . . . . . . . . 1 . . . . . Autoassimilate 1 | . . . . . . . . . . . . . . . . . . . 1 . . . . . . . . . . . Robots Hacked 246 | . . . . . . 2 . 3 4 4 7 25 3 5 4 7 15 2 4 1 16 10 20 4 11 9 17 13 14 46 Non-combat 21 | . . . . . . . . . . 2 . 9 . 1 . 2 . . . 1 . 2 . 4 . . . . . . Combat 225 | . . . . . . 2 . 3 4 2 7 16 3 4 4 5 15 2 4 . 16 8 20 . 11 9 17 13 14 46 Autooverrided 14 | . . . . . . . . . . . . . . . . . . . . . . . . . . 3 3 2 1 5 Autoassimilated 34 | . . . . . . . . . . . . . . . . . . . . . 4 2 3 . 3 1 3 3 2 13 Robot Hacks Applied 212 | . . . . . . 3 . 4 4 5 7 30 3 6 4 8 15 2 4 2 13 9 17 4 8 5 11 8 11 29 parse_system 7 | . . . . . . 1 . . . . . 3 . . . . . . . 1 1 . . . . . . . 1 . no_distress 7 | . . . . . . . . . . 1 . 1 . . . 1 . . . . . 1 . 3 . . . . . . generate_anomaly 1 | . . . . . . . . . . . . . . . . . . . . . . . . 1 . . . . . . generate_echo 1 | . . . . . . . . . . . . 1 . . . . . . . . . . . . . . . . . . ignore_repairs 1 | . . . . . . . . . . . . . . . . 1 . . . . . . . . . . . . . . map_walls 1 | . . . . . . . . . . . . 1 . . . . . . . . . . . . . . . . . . find_fabricator 3 | . . . . . . . . . . . . 1 . . . 1 . . . . . 1 . . . . . . . . drop_inventory 2 | . . . . . . . . . . . . 2 . . . . . . . . . . . . . . . . . . ignore_parts 2 | . . . . . . . . . . 1 . . . . . . . . . . . 1 . . . . . . . . release_backups 1 | . . . . . . . . . . . . 1 . . . . . . . . . . . . . . . . . . check_alert 1 | . . . . . . . . . . . . . . 1 . . . . . . . . . . . . . . . . find_garrison 3 | . . . . . . . . 1 . 1 . 1 . . . . . . . . . . . . . . . . . . scatter_targeting 2 | . . . . . . . . . . . . 1 . . 1 . . . . . . . . . . . . . . . spike_heat 1 | . . . . . . . . 1 . . . . . . . . . . . . . . . . . . . . . . overload_power 3 | . . . . . . . . . 1 . . 1 . . . . . . . . . . . . . . . . . 1 wipe_record 1 | . . . . . . . . . . . . 1 . . . . . . . . . . . . . . . . . . disable_weapons 2 | . . . . . . . . . . . . . . . . 1 . . 1 . . . . . . . . . . . reboot_system 13 | . . . . . . . . . . . 1 2 . 1 . . . 2 . . 1 2 . . . . 1 1 . 2 overwrite_iff 6 | . . . . . . . . . . . 1 1 . . . . 1 . . . . . 1 . . 1 . . . 1 streamctrl_high 4 | . . . . . . 1 . . . . . 2 . . . . 1 . . . . . . . . . . . . . formatsys_low 2 | . . . . . . . . . . . . 2 . . . . . . . . . . . . . . . . . . formatsys_high 148 | . . . . . . 1 . 2 3 2 5 9 3 4 3 4 13 . 3 1 11 4 16 . 8 4 10 7 10 25 Relay Couplers Released 170 | . . . . 13 . . 5 . 11 3 19 . 11 . 3 . 18 . 16 . 18 . 16 . 18 . 11 . 4 4 Machine Destruction 164 | . . . . 13 . . 5 . 11 . 19 . 11 . 3 . 18 . 16 . 18 . 16 . 18 . 11 . 4 1 Programmers 6 | . . . . . . . . . . 3 . . . . . . . . . . . . . . . . . . . 3 Attached 78 | . . . . . . 2 . 2 3 2 5 6 2 3 . 2 6 . 3 1 6 2 7 1 4 2 4 2 2 11 Robots Rewired 23 | . . . . . . . . . . . 6 . . . . . . . 2 . . . . . 15 . . . . . Allies Hacked . | . . . . . . . . . . . . . . . . . . . . . . . . . . . . . . . Hacks Repelled . | . . . . . . . . . . . . . . . . . . . . . . . . . . . . . . . Allies | -11 -10 -9 -8 -8 -8 -7 -7 -7 -7 -6 -6 -6 -6 -5 -5 -5 -5 -4 -4 -4 -4 -3 -3 -3 -3 -2 -2 -1 -1 -1 -------- Run | Scr Mat Mat Mat Gar Mat Fac Gar Fac Gar Fac Gar Fac Gar Fac Gar Fac Gar Fac Gar Fac Gar Res Gar Res Gar Res Gar Acc Gar Acc Total Allies 281 | . . . . . . 5 . 2 3 2 12 15 3 4 3 4 19 4 5 1 19 6 24 4 29 11 18 15 15 58 Largest Group 27 | . . . . . . 3 . 1 2 3 6 4 2 3 3 2 13 17 16 8 10 9 24 25 27 13 13 17 26 15 Highest-Rated Group 1498 | . . . . . . 64 . 32 60 92 147 116 64 137 107 98 395 583 554 346 458 552 1195 1259 1239 716 748 882 1498 1025 Highest-Rated Ally 222 | . . . . . . 32 . 32 32 32 32 47 41 49 49 49 49 47 115 108 115 115 115 115 115 69 147 147 222 206 Total Orders 298 | . . . . . . . . 9 4 5 2 12 . . . 11 10 2 31 . 31 19 46 2 32 6 28 8 23 17 STAY 149 | . . . . . . . . 3 1 2 1 5 . . . 5 4 1 13 . 18 9 26 2 17 3 15 4 10 10 ROAM 1 | . . . . . . . . . 1 . . . . . . . . . . . . . . . . . . . . . FOLLOW 145 | . . . . . . . . 5 2 3 1 5 . . . 6 6 1 18 . 13 10 20 . 15 3 13 4 13 7 AID 1 | . . . . . . . . 1 . . . . . . . . . . . . . . . . . . . . . . DROP 1 | . . . . . . . . . . . . 1 . . . . . . . . . . . . . . . . . . COLLECT 1 | . . . . . . . . . . . . 1 . . . . . . . . . . . . . . . . . . Ally Attacks 2111 | . . . . . . 27 . 24 11 21 47 82 17 23 35 33 34 11 96 2 59 65 110 70 225 135 96 165 191 532 Total Damage 66652 | . . . . . . 623 . 783 367 831 770 1859 242 636 795 1171 941 206 3218 39 1407 2682 3111 1378 7088 4351 2750 4769 5560 21075 Kills 343 | . . . . . . 6 . 8 3 8 5 12 10 3 2 14 2 . 13 . 8 12 17 4 35 24 14 18 24 101 Allies Corrupted 17 | . . . . . . . . . . . . 1 . 2 . 1 . . 1 . 2 . . . . 2 1 1 . 6 Allies Melted . | . . . . . . . . . . . . . . . . . . . . . . . . . . . . . . . Intel | -11 -10 -9 -8 -8 -8 -7 -7 -7 -7 -6 -6 -6 -6 -5 -5 -5 -5 -4 -4 -4 -4 -3 -3 -3 -3 -2 -2 -1 -1 -1 ------- Run | Scr Mat Mat Mat Gar Mat Fac Gar Fac Gar Fac Gar Fac Gar Fac Gar Fac Gar Fac Gar Fac Gar Res Gar Res Gar Res Gar Acc Gar Acc Robot Analysis Total 1 | . . . 1 . . . . . . . . . . . . . . . . . . . . . . . . . . . Derelict Logs Recovered . | . . . . . . . . . . . . . . . . . . . . . . . . . . . . . . . Drone Launches . | . . . . . . . . . . . . . . . . . . . . . . . . . . . . . . . Drone Recoveries . | . . . . . . . . . . . . . . . . . . . . . . . . . . . . . . . Exploration | -11 -10 -9 -8 -8 -8 -7 -7 -7 -7 -6 -6 -6 -6 -5 -5 -5 -5 -4 -4 -4 -4 -3 -3 -3 -3 -2 -2 -1 -1 -1 ------------- Run | Scr Mat Mat Mat Gar Mat Fac Gar Fac Gar Fac Gar Fac Gar Fac Gar Fac Gar Fac Gar Fac Gar Res Gar Res Gar Res Gar Acc Gar Acc Turns Passed 39646 | 67 117 421 2157 1586 482 2468 971 2278 1001 458 1772 2383 874 1107 688 1561 2652 374 2670 171 2356 497 3011 331 2563 368 1369 324 1027 1542 Spaces Moved 22365 | 46 126 205 859 846 260 1159 417 1410 584 293 934 1320 448 676 292 896 1160 186 1357 118 1580 320 2123 175 1585 217 861 203 589 1120 Core 248 | 1 . . . . . . . . . . . 1 . . . . . . . . . . . . . . . . . 246 Treads 2134 | . . 26 505 339 73 71 56 . . . . 17 3 . 3 . 759 48 234 . . . . . . . . . . . Legs 16 | . . . . . . . 14 . . . . 2 . . . . . . . . . . . . . . . . . . Wheels 19967 | 45 126 179 354 507 187 1088 347 1410 584 293 934 1300 445 676 289 896 401 138 1123 118 1580 320 2123 175 1585 217 861 203 589 874 Hover . | . . . . . . . . . . . . . . . . . . . . . . . . . . . . . . . Flight . | . . . . . . . . . . . . . . . . . . . . . . . . . . . . . . . Fastest Speed 50 | 50 80 90 90 120 120 120 120 120 120 110 110 115 115 125 130 130 130 140 120 120 110 120 120 130 120 130 130 130 130 50 Average Speed 140 | 79 89 98 161 156 147 164 154 125 125 121 148 134 158 134 200 135 201 162 164 120 120 121 125 130 129 132 130 134 139 117 Slowest Speed 1550 | 80 90 160 220 210 250 250 300 170 130 130 170 1550 225 180 265 170 260 200 230 120 140 130 130 130 140 140 130 140 140 160 Overloaded Moves . | . . . . . . . . . . . . . . . . . . . . . . . . . . . . . . . Propulsion Burnouts . | . . . . . . . . . . . . . . . . . . . . . . . . . . . . . . . Robots Hopped . | . . . . . . . . . . . . . . . . . . . . . . . . . . . . . . . Cave-ins Triggered . | . . . . . . . . . . . . . . . . . . . . . . . . . . . . . . . Exploration Rate (%) 46 | 3 38 21 64 96 20 32 57 37 65 10 83 28 54 19 53 26 98 4 98 5 98 8 98 8 93 8 99 11 76 46 Regions Visited 30 Branch Regions . Pre-discovered Areas . | . . . . . . . . . . . . . . . . . . . . . . . . . . . . . . . Known Exits Taken 15 | . . 1 1 . 1 1 . 1 . 1 . 1 . 1 . 1 . 1 . 1 . 1 . 1 . 1 . 1 . . Unknown Exits Taken 2 | 1 1 . . . . . . . . . . . . . . . . . . . . . . . . . . . . . Scrap Searched . | . . . . . . . . . . . . . . . . . . . . . . . . . . . . . . . Spaces Dug 250 | . . . 6 . . 4 . 16 . 18 18 10 12 6 . 47 38 . . 1 . 1 1 . 3 . 31 . . 38 Terrain Destroyed 1731 | . . . 13 76 17 93 8 41 105 73 213 244 71 42 118 137 61 4 69 1 117 3 48 . 3 . 111 9 . 54 Melee 84 | . . . 6 . . 4 . 16 . 3 . 10 . 6 . 29 . . . 1 . 1 1 . 3 . 1 . . 3 Projectile 2 | . . . . . . . . . . . . . . . . 1 1 . . . . . . . . . . . . . AOE 1645 | . . . 7 76 17 89 8 25 105 70 213 234 71 36 118 107 60 4 69 . 117 2 47 . . . 110 9 . 51 Terrain Rammed . | . . . . . . . . . . . . . . . . . . . . . . . . . . . . . . . Walls Destroyed . | . . . . . . . . . . . . . . . . . . . . . . . . . . . . . . . Machines Disabled . | . . . . . . . . . . . . . . . . . . . . . . . . . . . . . . . Actions | -11 -10 -9 -8 -8 -8 -7 -7 -7 -7 -6 -6 -6 -6 -5 -5 -5 -5 -4 -4 -4 -4 -3 -3 -3 -3 -2 -2 -1 -1 -1 --------- Run | Scr Mat Mat Mat Gar Mat Fac Gar Fac Gar Fac Gar Fac Gar Fac Gar Fac Gar Fac Gar Fac Gar Res Gar Res Gar Res Gar Acc Gar Acc Total 28527 | 61 127 312 1272 1017 324 1529 627 1770 805 362 1254 1783 583 835 362 1144 1443 240 1713 145 1944 412 2441 274 2045 296 1080 240 783 1304 Wait 2651 | . . 32 135 30 10 151 60 179 84 27 94 224 68 76 16 88 159 32 188 16 142 28 206 85 196 49 111 8 105 52 Move 22334 | 45 125 204 858 845 259 1158 416 1409 583 292 933 1319 447 675 291 895 1159 185 1356 117 1579 319 2121 174 1584 216 860 202 588 1120 Hop . | . . . . . . . . . . . . . . . . . . . . . . . . . . . . . . . Pick Up 287 | 2 . 3 26 7 9 26 10 16 12 3 11 13 12 11 3 15 14 . 18 1 11 7 13 1 21 5 14 . 2 1 Fast Attach 140 | 7 1 4 18 1 4 14 8 6 1 1 6 16 2 6 4 3 5 4 5 . 6 7 1 . 3 . . 1 3 3 Attach 203 | . . 1 16 3 . 11 8 10 10 4 7 22 6 7 5 9 5 . 6 1 10 7 5 . 7 4 6 2 2 29 Detach 99 | 1 . 1 10 . . 3 5 4 4 1 6 13 3 6 3 5 2 . 4 1 9 2 1 . 2 . 3 . 3 7 Swap 384 | . . 3 14 12 8 32 11 38 8 9 15 39 14 15 6 24 14 1 26 3 32 7 12 3 6 1 10 6 2 13 Drop 217 | . . 4 9 2 12 25 9 17 7 . 9 8 5 6 3 8 13 2 22 1 7 10 8 1 11 7 5 . 1 5 Fire 1266 | 6 1 60 173 42 22 89 66 41 35 19 46 93 12 17 24 30 48 16 42 3 85 24 41 10 58 13 37 21 33 59 Melee 315 | . . . 13 26 . 20 10 50 6 6 13 35 10 15 3 42 . . 32 1 3 1 7 . 7 . 8 . . 7 Ram 1 | . . . . . . . . . . . . . . . . . . . . . . . . . . . . . . 1 Kick . | . . . . . . . . . . . . . . . . . . . . . . . . . . . . . . . Crush 1 | . . . . . . . . . . . . . . . . . . . . . . . . . . . . . . 1 Escape Stasis 414 | . . . . 49 . . 24 . 55 . 53 . 4 . 2 24 20 . 12 . 56 . 16 . 32 . 23 . 44 . Rewire 215 | . . . . . . . . . . . 61 1 . 1 2 1 4 . 2 1 4 . 10 . 118 1 3 . . 6 Trap . | . . . . . . . . . . . . . . . . . . . . . . . . . . . . . . . Miscellaneous . | . . . . . . . . . . . . . . . . . . . . . . . . . . . . . . . Route ------- -11/Scrapyard -10/Materials -9/Materials -8/Materials (discovered 3 exits: *Fac x2 / Gar) -8/Garrison (discovered 3 exits: *Mat x3) -8/Materials -7/Factory (discovered 4 exits: *Fac / *Low / Gar / Gar) -7/Garrison (discovered 2 exits: *Fac x2) -7/Factory (discovered 6 exits: *Fac x4 / *Low / Gar) -7/Garrison (discovered 2 exits: *Fac x2) -6/Factory -6/Garrison (discovered 3 exits: *Fac x3) -6/Factory (discovered 4 exits: *Fac x2 / [*Low] / Gar) -6/Garrison -5/Factory (discovered 3 exits: *Fac / *Upp / Gar) -5/Garrison -5/Factory (discovered 4 exits: *Fac / *Upp x2 / Gar) -5/Garrison (discovered 3 exits: *Fac x3) -4/Factory -4/Garrison (discovered 3 exits: *Fac x3) -4/Factory -4/Garrison (discovered 3 exits: *Res x3) -3/Research (discovered 3 exits: *Res / *Arm / Gar) -3/Garrison (discovered 3 exits: *Res x3) -3/Research -3/Garrison (discovered 3 exits: *Res x3) -2/Research -2/Garrison (discovered 3 exits: *Acc x3) -1/Access -1/Garrison (discovered 3 exits: *Acc x3) -1/Access History --------- Turn | Location | Event 13 | -11/Scrapyard | Discovered new exit (range 16) 68 | -11/Scrapyard | Entered Materials 182 | -10/Materials | Discovered new exit (range 5) 185 | -10/Materials | Entered another Materials area 185 | -9/Materials | Evolved 2 slots: Utility x2 315 | -9/Materials | Build established: Mutant 582 | -9/Materials | Discovered new exit (range 15) 605 | -9/Materials | Identified exit to Materials 606 | -9/Materials | Entered another Materials area 606 | -8/Materials | Evolved 2 slots: Utility x2 827 | -8/Materials | Lost 4 parts (1p2n1w) 1209 | -8/Materials | Core integrity fell below 50% 1640 | -8/Materials | Discovered new exit (range 14) 1691 | -8/Materials | Identified exit to Factory 1871 | -8/Materials | Build established: Hauler-Mutant 2258 | -8/Materials | Discovered exit to Factory (range 5) 2397 | -8/Materials | Repaired Adv. Heat Sink 2647 | -8/Materials | Identified exit to Garrison 2763 | -8/Materials | Entered Garrison 2804 | -8/Garrison | Triggered checkpoint 2840 | -8/Garrison | Garrison Relay disabled 2924 | -8/Garrison | Triggered checkpoint 3131 | -8/Garrison | Discovered new exit (range 10) 3219 | -8/Garrison | Triggered checkpoint 3406 | -8/Garrison | Triggered checkpoint 3494 | -8/Garrison | Discovered new exit (range 15) 3545 | -8/Garrison | Installed Relay Interface Framework 3622 | -8/Garrison | Garrison Relay disabled 3724 | -8/Garrison | Triggered checkpoint 3742 | -8/Garrison | Core integrity fell below 20% 3783 | -8/Garrison | Garrison Relay disabled 3908 | -8/Garrison | Discovered new exit (range 12) 4040 | -8/Garrison | Phase Generator disabled 4312 | -8/Garrison | Triggered checkpoint 4349 | -8/Garrison | Entered Materials 4814 | -8/Materials | Discovered exit to Factory (range 10) 4831 | -8/Materials | Entered Factory 4831 | -7/Factory | Evolved 2 slots: Utility x2 4855 | -7/Factory | Identified exit to Garrison 5631 | -7/Factory | First assault squad dispatched 5669 | -7/Factory | Repaired Recalibrator 5850 | -7/Factory | Garrison activated, responded to threat 6549 | -7/Factory | Lost 3 parts (1p1u1w) 6593 | -7/Factory | Discovered new exit (range 16) 6615 | -7/Factory | Identified exit to Factory 6970 | -7/Factory | Discovered new exit (range 3) 6973 | -7/Factory | Identified exit to Lower Caves 7017 | -7/Factory | Found Powered Armor 7020 | -7/Factory | Found Powered Armor 7023 | -7/Factory | Found Powered Armor 7117 | -7/Factory | Destroyed 8 combat bots 7123 | -7/Factory | Lost 5 parts (2n3w) 7297 | -7/Factory | Identified exit to Garrison 7299 | -7/Factory | Entered Garrison 7600 | -7/Garrison | Core integrity fell below 50% 7620 | -7/Garrison | System corruption reached 10% 7721 | -7/Garrison | Destroyed 8 combat bots 7813 | -7/Garrison | Garrison Relay disabled 7838 | -7/Garrison | Triggered checkpoint 7917 | -7/Garrison | Triggered checkpoint 7992 | -7/Garrison | Build established: Scavenger-Mutant 8079 | -7/Garrison | Discovered new exit (range 12) 8092 | -7/Garrison | Identified exit to Factory 8138 | -7/Garrison | Triggered checkpoint 8239 | -7/Garrison | Discovered exit to Factory (range 12) 8266 | -7/Garrison | Expanded RIF knowledge: Zone Cloak 8270 | -7/Garrison | Entered Factory 8625 | -7/Factory | Discovered exit to Lower Caves (range 11) 9891 | -7/Factory | Build established: Hauler-Mutant 10095 | -7/Factory | Found Powered Armor 10541 | -7/Factory | Identified exit to Garrison 10548 | -7/Factory | Entered Garrison 10548 | -7/Garrison | Accompanied by 1 ally 10736 | -7/Garrison | Garrison Relay disabled 10757 | -7/Garrison | Triggered checkpoint 10881 | -7/Garrison | Triggered checkpoint 10965 | -7/Garrison | Core integrity fell below 20% 11045 | -7/Garrison | Build established: Bothacker-Mutant 11085 | -7/Garrison | Discovered exit to Factory (range 10) 11157 | -7/Garrison | Triggered checkpoint 11204 | -7/Garrison | Garrison Relay disabled 11323 | -7/Garrison | Triggered checkpoint 11395 | -7/Garrison | Discovered exit to Factory (range 12) 11416 | -7/Garrison | Expanded RIF knowledge: Program Shield 11448 | -7/Garrison | Triggered checkpoint 11474 | -7/Garrison | Garrison Relay disabled 11549 | -7/Garrison | Entered Factory 11549 | -6/Factory | Accompanied by 2 allies 11549 | -6/Factory | Evolved 2 slots: Power x1, Utility x1 11899 | -6/Factory | First assault squad dispatched 11995 | -6/Factory | Identified exit to Garrison 12007 | -6/Factory | Entered Garrison 12032 | -6/Garrison | Triggered checkpoint 12054 | -6/Garrison | Triggered checkpoint 12086 | -6/Garrison | Triggered checkpoint 12217 | -6/Garrison | Garrison Relay disabled 12660 | -6/Garrison | Spotted B-75 Beast 12668 | -6/Garrison | Triggered checkpoint 12684 | -6/Garrison | Triggered checkpoint 12796 | -6/Garrison | Destroyed B-75 Beast 12902 | -6/Garrison | Discovered new exit (range 12) 12915 | -6/Garrison | Identified exit to Factory 13018 | -6/Garrison | Discovered exit to Factory (range 8) 13070 | -6/Garrison | Triggered checkpoint 13138 | -6/Garrison | Garrison Relay disabled 13336 | -6/Garrison | Discovered exit to Factory (range 15) 13377 | -6/Garrison | Expanded RIF knowledge: Coupler Efficiency 13427 | -6/Garrison | Triggered checkpoint 13467 | -6/Garrison | Garrison Relay disabled 13542 | -6/Garrison | Triggered checkpoint 13655 | -6/Garrison | Triggered checkpoint 13676 | -6/Garrison | Build established: Botlord-Mutant 13696 | -6/Garrison | Garrison Relay disabled 13779 | -6/Garrison | Entered Factory 13779 | -6/Factory | Accompanied by 4 allies 14479 | -6/Factory | First assault squad dispatched 14575 | -6/Factory | Lost 3 parts (1p1n1w) 14725 | -6/Factory | Discovered new exit (range 12) 15018 | -6/Factory | Fabricated Remote Force Field? 15307 | -6/Factory | Repaired Lrn. Sensor Array 15811 | -6/Factory | Discovered new exit (range 9) 15828 | -6/Factory | Identified exit to Factory 15873 | -6/Factory | Repaired Remote Datajack 16054 | -6/Factory | Identified exit to Garrison 16058 | -6/Factory | Discovered exit to Factory (range 8) 16113 | -6/Factory | Core integrity fell below 50% 16162 | -6/Factory | Entered Garrison 16162 | -6/Garrison | Accompanied by 1 ally 16169 | -6/Garrison | Expanded RIF knowledge: Watcher Feeds 16246 | -6/Garrison | Triggered checkpoint 16456 | -6/Garrison | Garrison Relay disabled 16673 | -6/Garrison | Garrison Relay disabled 16825 | -6/Garrison | Triggered checkpoint 16917 | -6/Garrison | Triggered checkpoint 16945 | -6/Garrison | Garrison Relay disabled 17012 | -6/Garrison | Discovered exit to Factory (range 12) 17036 | -6/Garrison | Entered Factory 17036 | -5/Factory | Accompanied by 2 allies 17036 | -5/Factory | Evolved 2 slots: Utility x2 17207 | -5/Factory | Discovered new exit (range 12) 17221 | -5/Factory | Identified exit to Factory 17394 | -5/Factory | Repaired Broken Lrn. Sensor Array 17520 | -5/Factory | Repaired Chainsword 17709 | -5/Factory | Discovered new exit (range 16) 17936 | -5/Factory | First assault squad dispatched 18120 | -5/Factory | Identified exit to Garrison 18143 | -5/Factory | Entered Garrison 18204 | -5/Garrison | Triggered checkpoint 18241 | -5/Garrison | Garrison Relay disabled 18485 | -5/Garrison | Spotted B-75 Beast 18551 | -5/Garrison | Build established: Hauler-Mutant 18658 | -5/Garrison | Triggered checkpoint 18741 | -5/Garrison | Discovered new exit (range 10) 18760 | -5/Garrison | Identified exit to Factory 18773 | -5/Garrison | Expanded RIF knowledge: Command Fork 18831 | -5/Garrison | Entered Factory 18869 | -5/Factory | Discovered new exit (range 13) 18888 | -5/Factory | Discovered exit to Factory (range 13) 18923 | -5/Factory | Identified exit to Upper Caves 18981 | -5/Factory | Discovered exit to Upper Caves (range 15) 19129 | -5/Factory | Build established: Botlord-Mutant 20107 | -5/Factory | Garrison activated, responded to threat 20196 | -5/Factory | Lost 3 parts (2n1u) 20331 | -5/Factory | First assault squad dispatched 20391 | -5/Factory | Identified exit to Garrison 20392 | -5/Factory | Entered Garrison 20475 | -5/Garrison | Triggered checkpoint 20720 | -5/Garrison | Discovered exit to Factory (range 14) 20950 | -5/Garrison | Triggered checkpoint 21089 | -5/Garrison | Garrison Relay disabled 21226 | -5/Garrison | Triggered checkpoint 21333 | -5/Garrison | Discovered exit to Factory (range 8) 21370 | -5/Garrison | Triggered checkpoint 21448 | -5/Garrison | Garrison Relay disabled 21554 | -5/Garrison | Triggered checkpoint 21885 | -5/Garrison | Discovered exit to Factory (range 10) 21913 | -5/Garrison | Expanded RIF knowledge: Structural Interface 22021 | -5/Garrison | Garrison Relay disabled 22112 | -5/Garrison | Triggered checkpoint 22221 | -5/Garrison | Triggered checkpoint 22253 | -5/Garrison | Garrison Relay disabled 23044 | -5/Garrison | Entered Factory 23044 | -4/Factory | Accompanied by 13 allies 23044 | -4/Factory | Evolved 2 slots: Propulsion x1, Utility x1 23269 | -4/Factory | Identified exit to Garrison 23418 | -4/Factory | Entered Garrison 23418 | -4/Garrison | Accompanied by 16 allies 23448 | -4/Garrison | Triggered checkpoint 23629 | -4/Garrison | Triggered checkpoint 23643 | -4/Garrison | Spotted B-86 Titan 23681 | -4/Garrison | Assimilated Titan 7a with formatsys_high 23732 | -4/Garrison | Triggered checkpoint 23818 | -4/Garrison | Discovered new exit (range 9) 23832 | -4/Garrison | Triggered checkpoint 23868 | -4/Garrison | Garrison Relay disabled 24065 | -4/Garrison | Spotted B-86 Titan 24078 | -4/Garrison | Destroyed B-86 Titan 24078 | -4/Garrison | Garrison Relay disabled 24189 | -4/Garrison | Triggered checkpoint 24440 | -4/Garrison | Triggered checkpoint 24462 | -4/Garrison | Garrison Relay disabled 24847 | -4/Garrison | Triggered checkpoint 24937 | -4/Garrison | Garrison Relay disabled 24990 | -4/Garrison | Discovered new exit (range 10) 25330 | -4/Garrison | Garrison Relay disabled 25631 | -4/Garrison | Found Unknown Device 25632 | -4/Garrison | Identified Antimissile System 25678 | -4/Garrison | Discovered new exit (range 14) 25849 | -4/Garrison | Identified exit to Factory 25856 | -4/Garrison | Expanded RIF knowledge: Autoassimilate 26088 | -4/Garrison | Entered Factory 26088 | -4/Factory | Accompanied by 7 allies 26228 | -4/Factory | Identified exit to Garrison 26259 | -4/Factory | Entered Garrison 26259 | -4/Garrison | Accompanied by 8 allies 26265 | -4/Garrison | Expanded RIF knowledge: Zone Cloak 26414 | -4/Garrison | Triggered checkpoint 26452 | -4/Garrison | Garrison Relay disabled 26528 | -4/Garrison | Spotted B-86 Titan 26532 | -4/Garrison | Triggered checkpoint 26534 | -4/Garrison | Triggered checkpoint 26682 | -4/Garrison | Destroyed B-86 Titan 26726 | -4/Garrison | Found Hvy. Reflective Plating 26775 | -4/Garrison | Discovered new exit (range 14) 26813 | -4/Garrison | Triggered checkpoint 26851 | -4/Garrison | Garrison Relay disabled 27016 | -4/Garrison | Discovered new exit (range 15) 27074 | -4/Garrison | Garrison Relay disabled 27124 | -4/Garrison | Triggered checkpoint 27214 | -4/Garrison | Triggered checkpoint 27242 | -4/Garrison | Triggered checkpoint 27362 | -4/Garrison | Garrison Relay disabled 27385 | -4/Garrison | Garrison Relay disabled 27418 | -4/Garrison | Discovered new exit (range 8) 27459 | -4/Garrison | Spotted B-86 Titan 27459 | -4/Garrison | Spotted B-86 Titan 27460 | -4/Garrison | Autoassimilated Titan 7b with RIF 27471 | -4/Garrison | Allies destroyed B-86 Titan 27508 | -4/Garrison | Triggered checkpoint 28101 | -4/Garrison | Triggered checkpoint 28165 | -4/Garrison | Identified exit to Research 28264 | -4/Garrison | Triggered checkpoint 28615 | -4/Garrison | Entered Research 28615 | -3/Research | Accompanied by 7 allies 28615 | -3/Research | Evolved 2 slots: Utility x2 28705 | -3/Research | Found Prototype Processor 28708 | -3/Research | Found Prototype Processor 28739 | -3/Research | Identified Exp. Terrain Scan Processor (x2) 28774 | -3/Research | Discovered new exit (range 16) 28863 | -3/Research | Identified exit to Armory 28865 | -3/Research | First assault squad dispatched 29045 | -3/Research | Discovered new exit (range 14) 29110 | -3/Research | Identified exit to Garrison 29112 | -3/Research | Entered Garrison 29112 | -3/Garrison | Accompanied by 9 allies 29118 | -3/Garrison | Expanded RIF knowledge: Threat Obfuscation 29246 | -3/Garrison | Triggered checkpoint 29342 | -3/Garrison | Garrison Relay disabled 29519 | -3/Garrison | Triggered checkpoint 29566 | -3/Garrison | Triggered checkpoint 29628 | -3/Garrison | Triggered checkpoint 29662 | -3/Garrison | Discovered new exit (range 11) 29672 | -3/Garrison | Identified exit to Research 29728 | -3/Garrison | Garrison Relay disabled 29861 | -3/Garrison | Triggered checkpoint 29994 | -3/Garrison | Discovered exit to Research (range 11) 30034 | -3/Garrison | Triggered checkpoint 30065 | -3/Garrison | Garrison Relay disabled 30260 | -3/Garrison | Triggered checkpoint 30272 | -3/Garrison | Discovered exit to Research (range 14) 30330 | -3/Garrison | Triggered checkpoint 30364 | -3/Garrison | Garrison Relay disabled 30478 | -3/Garrison | Triggered checkpoint 32123 | -3/Garrison | Entered Research 32123 | -3/Research | Accompanied by 23 allies 32168 | -3/Research | Spotted B-86 Titan 32189 | -3/Research | Allies destroyed B-86 Titan 32223 | -3/Research | Identified exit to Garrison 32454 | -3/Research | Entered Garrison 32454 | -3/Garrison | Accompanied by 17 allies 32503 | -3/Garrison | Garrison Relay disabled 32510 | -3/Garrison | Triggered checkpoint 32606 | -3/Garrison | Spotted B-86 Titan 32746 | -3/Garrison | Triggered checkpoint 32820 | -3/Garrison | Triggered checkpoint 32845 | -3/Garrison | Allies destroyed B-86 Titan 32911 | -3/Garrison | Triggered checkpoint 32928 | -3/Garrison | Triggered checkpoint 32999 | -3/Garrison | Discovered new exit (range 9) 33013 | -3/Garrison | Triggered checkpoint 33033 | -3/Garrison | Garrison Relay disabled 33071 | -3/Garrison | Identified exit to Research 33080 | -3/Garrison | Expanded RIF knowledge: Autooverride 33229 | -3/Garrison | Discovered exit to Research (range 9) 33251 | -3/Garrison | Triggered checkpoint 33403 | -3/Garrison | Triggered checkpoint 33531 | -3/Garrison | Triggered checkpoint 33650 | -3/Garrison | Discovered exit to Research (range 4) 33830 | -3/Garrison | Spotted B-86 Titan 34019 | -3/Garrison | Garrison Relay disabled 34528 | -3/Garrison | Allies destroyed B-86 Titan 34568 | -3/Garrison | Found Hvy. Reflective Plating 34810 | -3/Garrison | Garrison Relay disabled 34913 | -3/Garrison | Triggered checkpoint 34916 | -3/Garrison | Garrison Relay disabled 35017 | -3/Garrison | Entered Research 35017 | -2/Research | Accompanied by 13 allies 35017 | -2/Research | Evolved 2 slots: Power x1, Utility x1 35267 | -2/Research | First assault squad dispatched 35293 | -2/Research | Garrison activated, responded to threat 35364 | -2/Research | Identified exit to Garrison 35385 | -2/Research | Entered Garrison 35385 | -2/Garrison | Accompanied by 1 ally 35392 | -2/Garrison | Expanded RIF knowledge: Coupler Efficiency 35505 | -2/Garrison | Triggered checkpoint 35542 | -2/Garrison | Garrison Relay disabled 35590 | -2/Garrison | Spotted B-90 Cyclops 35593 | -2/Garrison | Assimilated Cyclops 9a with formatsys_high 35604 | -2/Garrison | Triggered checkpoint 35642 | -2/Garrison | Triggered checkpoint 35666 | -2/Garrison | Triggered checkpoint 35790 | -2/Garrison | Discovered new exit (range 10) 36034 | -2/Garrison | Discovered new exit (range 6) 36048 | -2/Garrison | Triggered checkpoint 36068 | -2/Garrison | Garrison Relay disabled 36147 | -2/Garrison | Triggered checkpoint 36180 | -2/Garrison | Triggered checkpoint 36228 | -2/Garrison | Discovered new exit (range 9) 36242 | -2/Garrison | Triggered checkpoint 36301 | -2/Garrison | Garrison Relay disabled 36534 | -2/Garrison | Identified exit to Access 36754 | -2/Garrison | Entered Access 36754 | -1/Access | Accompanied by 11 allies 36754 | -1/Access | Evolved 2 slots: Power x1, Utility x1 37004 | -1/Access | First assault squad dispatched 37018 | -1/Access | Garrison activated, responded to threat 37075 | -1/Access | Identified exit to Garrison 37078 | -1/Access | Entered Garrison 37078 | -1/Garrison | Accompanied by 15 allies 37287 | -1/Garrison | Spotted B-99 Colossus 37289 | -1/Garrison | Assimilated Colossus 10a with formatsys_high 37299 | -1/Garrison | Triggered checkpoint 37302 | -1/Garrison | Triggered checkpoint 37326 | -1/Garrison | Triggered checkpoint 37386 | -1/Garrison | Triggered checkpoint 37434 | -1/Garrison | Triggered checkpoint 37456 | -1/Garrison | Discovered new exit (range 15) 37604 | -1/Garrison | Discovered new exit (range 8) 37704 | -1/Garrison | Triggered checkpoint 37718 | -1/Garrison | Discovered new exit (range 8) 37726 | -1/Garrison | Identified exit to Access 37735 | -1/Garrison | Expanded RIF knowledge: Command Fork 38105 | -1/Garrison | Entered Access 38105 | -1/Access | Accompanied by 15 allies 38355 | -1/Access | First assault squad dispatched 38505 | -1/Access | Garrison activated, responded to threat 38743 | -1/Access | Spotted B-99 Colossus 38767 | -1/Access | Allies destroyed B-99 Colossus 38910 | -1/Access | Garrison activated, responded to threat 39212 | -1/Access | Garrison activated, responded to threat 39253 | -1/Access | High security lockdown imminent 39333 | -1/Access | High security lockdown engaged 39444 | -1/Access | Lost 5 parts (2p3u) 39474 | -1/Access | Spotted B-99 Colossus 39476 | -1/Access | Spotted Executioner 39476 | -1/Access | Spotted Executioner 39500 | -1/Access | Spotted B-99 Colossus 39512 | -1/Access | Allies destroyed Executioner 39524 | -1/Access | Core integrity fell below 50% 39526 | -1/Access | Spotted Executioner 39550 | -1/Access | Lost 17 parts (2p6n8u1w) 39623 | -1/Access | Spotted Striker 39630 | -1/Access | Core integrity fell below 20% 39635 | -1/Access | System corruption reached 10% 39647 | -1/Access | Destroyed by Y-72 Warden with Quantum Rifle Last Messages --------------- 39612_ E-15 Imp unfolds itself. 39622_ Relay Coupler [Sentry] blown off. 39622_ Adv. Signal Interpreter blown off. 39622_ Relay Coupler [Grunt] blown off. 39622_ Relay Coupler [Brawler] blown off. 39622_ E-15 Imp destroyed. 39622_ Penetrated by Slug. 39623_ RIF reveals location of hidden door. 39623_ Anti-Orbital Battery disabled. 39627_ Detecting nearby Garrison Access. 39629_ Slug penetrates Recycling Unit. 39629_ Penetrated by Slug. 39630_ Recycling Unit disabled. 39630_ RIF reveals location of hidden door. 39631_ Triggered Alarm Trap. 39631_ An alarm sounds. 39631_ ALERT: Alarm triggered, assault force dispatched. 39635_ K-01 Serf collects debris. 39644_ Penetrated by Slug. [Achievement: 50k Club] Map ----- +----------------------------------------------------+ | | | | | | | | | | | | | | | ?????????????????????????????????????????????????? | | ?????????????????????????????????????????????????? | | ?????????????????????????????????????????????????? | | ?????????????????????????????????????????????????? | | ?????????????????????????????????????????????????? | | ?????????????????????????????????#########???????? | | ????????????????????############## #???????? | | ????????????????????# # #???????? | | ???????????????????## ! # #???????? | | ???????????????????# # #???????? | | ????????????????????#Y # #???????? | | ????????????????????# # #???????? | | ????????????????????# # #???????? | | ????????????????????# !! # #???????? | | ????????????????????# !! # #???????? | | ????????????????????# | # #???????? | | ????????????????????# ! K #?####### | | ????????????????????# # #? | | ????????????????????# @ e # # | | ??????????????????###+############ # " | | ?????????????????? ??# " "" | | ??????????????????? ??# # "" | | ???????????????????? ??# + "" | | ???????????????????? ??# + "" | | ????????????????????? ??# # "" | | ?????????????????????? ??# # "" | | #########+#############+### #? " | | ########?? | | #?????????? | | #??????????##### | | +??????????????? | | #??????????????? | | "%" #??????????????? | | "%" #??????????????? | | #################/###########??????????????? | | #??????????# #??????????????????? | | ############ #??????????????????? | | # "" # " ""#????????????????? | | # "" " "" ""#????????????????? | | # """" # "" ""#????????????????? | | # """" # "Y G#????????????????? | | # """" # "" ""#????????????????? | | # """" # "" ""#????????????????? | +----------------------------------------------------+ Best States ------------- Heat Dissipation 53 Energy Generation 79 Energy Capacity 980 Matter Stores 300 Matter Capacity 300 Sight Range 16 Robot Scan Range 20 Terrain Scan Density 10 Armor Coverage 800 Resistance: KI 30 Resistance: TH 30 Resistance: EM 15 Propulsion Shielding 66 Weapon Cycling 15 Evasion (%) 50 Target Analysis 6 Core Analysis 10 Recoil Reduction 2 Overload Regulation 40 Stasis Canceling 2 Defensive Hacking 10 Relay Coupler Types 222 Relay Coupler Value 9 Item Schematics ----------------- Remote Force Field | -7/Factory | Scanalyzed Remote Datajack | -7/Factory | Hacked Gravmag System | -7/Factory | Scanalyzed Lrg. Storage Unit | -7/Factory | Scanalyzed Med. Reactive Plating | -7/Factory | Scanalyzed Lrn. Proton Cannon | -6/Factory | Hacked Hcp. Storage Unit | -6/Factory | Scanalyzed Robot Schematics ------------------ None Fabricated ------------ Remote Force Field | x2 | -6/Factory Alien Tech Used ----------------- None Achievements -------------- 50k Club Packrat Pwned Use The Force Challenges ------------ None Game ------ Seed RocketGatlingDevice Manual? 0 Play Time 09:20:17 Cumulative 119.3 hours Start 2021.10.10 @ 02:46:50 End 2021.10.10 @ 23:29:40 Sessions 5 Manual Loads 0 Difficulty Rogue Special Mode None Game No. 84 Rogue 82 Adventurer 2 Explorer 0 Win Type - Total 5 Types 3/0/0/2/0/0/0/0/0 Lore% 69 Gallery% 75 Achievement% 64 Wizard Run 0 Options --------- ASCII 0 Keyboard 1 Movement Numpad Keybinds 0 Fullscreen 1 Font 12/Smallcaps Map View 83x54 Tactical HUD 1 Map Filters NONE Filters NONE Steam 1 RUN: ca958cc6-afdc-46e9-978d-6b30caab8441